lending/lending_fUSD_20251218
["ID","MTS","AMOUNT","RATE_DAILY","PERIOD"]
[399040509,1766088194394,-500.0,0.00016682,2]
[399040510,1766088194423,-500.0,0.00016682,2]
[399040511,1766088194451,-854.85423107,0.00016682,2]
[399040512,1766088194477,-500.0,0.00016682,2]
[399040513,1766088194503,-537.86593135,0.00016682,2]
[399040514,1766088194529,-854.85423107,0.00016682,2]
[399040515,1766088194555,-500.0,0.00016682,2]
[399040516,1766088194580,-500.0,0.00016682,2]
[399040517,1766088194608,-500.0,0.00016682,2]
[399040518,1766088194634,-181.10179801,0.00016682,2]
[399040519,1766088194664,-854.85423107,0.00016682,2]
[399040520,1766088194691,-500.0,0.00016682,2]
[399040521,1766088194725,-500.0,0.00016682,2]
[399040522,1766088194753,-189.16147687,0.00016682,2]
[399040523,1766088194783,-854.85423107,0.00016682,2]
[399040524,1766088194812,-854.85423107,0.00016682,2]
[399040525,1766088194839,-500.0,0.00016682,2]
[399040526,1766088194867,-500.0,0.00016682,2]
[399040527,1766088194898,-854.85423107,0.00016682,2]
[399040528,1766088194925,-503.42551085,0.00016682,2]
[399040529,1766088194951,-500.0,0.00016682,2]
[399040530,1766088194978,-500.0,0.00016682,2]
[399040531,1766088195007,-854.85423107,0.00016682,2]
[399040532,1766088195035,-854.85423107,0.00016682,2]
[399040533,1766088195062,-854.85423107,0.00016682,2]
[399040534,1766088195089,-500.0,0.00016682,2]
[399040535,1766088195119,-854.85423107,0.00016682,2]
[399040536,1766088195151,-377.70847864,0.00016682,2]
[399040537,1766088195181,-854.85423107,0.00016682,2]
[399040538,1766088195210,-854.85423107,0.00016682,2]
[399040539,1766088195238,-854.85423107,0.00016682,2]
[399040540,1766088195266,-854.85423107,0.00016682,2]
[399040541,1766088195294,-854.85423107,0.00016682,2]
[399040542,1766088195323,-854.85423107,0.00016682,2]
[399040543,1766088195352,-854.85423107,0.00016682,2]
[399040544,1766088195385,-854.85423107,0.00016682,2]
[399040545,1766088195415,-854.85423107,0.00016682,2]
[399040546,1766088195443,-854.85423107,0.00016682,2]
[399040547,1766088195470,-854.85423107,0.00016682,2]
[399040548,1766088195499,-854.85423107,0.00016682,2]
[399040549,1766088195524,-854.85423107,0.00016682,2]
[399040550,1766088195551,-854.85423107,0.00016682,2]
[399040551,1766088195579,-854.85423107,0.00016682,2]
[399040552,1766088195606,-854.85423107,0.00016682,2]
[399040553,1766088195634,-854.85423107,0.00016682,2]
[399040554,1766088195663,-854.85423107,0.00016682,2]
[399040555,1766088195689,-854.85423107,0.00016682,2]
[399040556,1766088195715,-854.85423107,0.00016682,2]
[399040557,1766088195741,-854.85423107,0.00016682,2]
[399040558,1766088195767,-854.85423107,0.00016682,2]
[399040559,1766088195796,-854.85423107,0.00016682,2]
[399040560,1766088195823,-854.85423107,0.00016682,2]
[399040561,1766088195849,-854.85423107,0.00016682,2]
[399040562,1766088195877,-854.85423107,0.00016682,2]
[399040563,1766088195905,-854.85423107,0.00016682,2]
[399040564,1766088195933,-854.85423107,0.00016682,2]
[399040565,1766088195959,-854.85423107,0.00016682,2]
[399040566,1766088195986,-854.85423107,0.00016682,2]
[399040567,1766088196014,-854.85423107,0.00016682,2]
[399040568,1766088196042,-854.85423107,0.00016682,2]
[399040569,1766088196067,-854.85423107,0.00016682,2]
[399040570,1766088196095,-854.85423107,0.00016682,2]
[399040571,1766088196700,-854.85423107,0.00016682,2]
[399040572,1766088196729,-854.85423107,0.00016682,2]
[399040573,1766088196755,-854.85423107,0.00016682,2]
[399040574,1766088196782,-854.85423107,0.00016682,2]
[399040575,1766088196814,-854.85423107,0.00016682,2]
[399040576,1766088196841,-854.85423107,0.00016682,2]
[399040577,1766088196866,-854.85423107,0.00016682,2]
[399040578,1766088196892,-854.85423107,0.00016682,2]
[399040579,1766088196920,-854.85423107,0.00016682,2]
[399040580,1766088196946,-854.85423107,0.00016682,2]
[399040581,1766088196974,-854.85423107,0.00016682,2]
[399040582,1766088197002,-854.85423107,0.00016682,2]
[399040583,1766088197031,-854.85423107,0.00016682,2]
[399040584,1766088197057,-854.85423107,0.00016682,2]
[399040585,1766088197085,-854.85423107,0.00016682,2]
[399040586,1766088197112,-854.85423107,0.00016682,2]
[399040587,1766088197138,-854.85423107,0.00016682,2]
[399040588,1766088197163,-854.85423107,0.00016682,2]
[399040589,1766088197188,-854.85423107,0.00016682,2]
[399040590,1766088197214,-854.85423107,0.00016682,2]
[399040591,1766088197244,-828.55102397,0.00016682,2]
[399040592,1766088197271,-828.55102397,0.00016682,2]
[399040593,1766088197298,-828.55102397,0.00016682,2]
[399040594,1766088197326,-828.55102397,0.00016682,2]
[399040595,1766088197353,-828.55102397,0.00016682,2]
[399040596,1766088197379,-828.55102397,0.00016682,2]
[399040597,1766088197405,-828.55102397,0.00016682,2]
[399040598,1766088197432,-828.55102397,0.00016682,2]
[399040599,1766088197457,-828.55102397,0.00016682,2]
[399040600,1766088197483,-828.55102397,0.00016682,2]
[399040601,1766088197508,-828.55102397,0.00016682,2]
[399040602,1766088197534,-828.55102397,0.00016682,2]
[399040603,1766088197560,-828.55102397,0.00016682,2]
[399040604,1766088197585,-828.55102397,0.00016682,2]
[399040605,1766088197612,-828.55102397,0.00016682,2]
[399040606,1766088197638,-828.55102397,0.00016682,2]
[399040607,1766088197672,-828.55102397,0.00016682,2]
[399040608,1766088197698,-828.55102397,0.00016682,2]
[399040609,1766088197725,-828.55102397,0.00016682,2]
[399040610,1766088197752,-828.55102397,0.00016682,2]
[399040611,1766088197778,-828.55102397,0.00016682,2]
[399040612,1766088197804,-828.55102397,0.00016682,2]
[399040613,1766088197832,-828.55102397,0.00016682,2]
[399040614,1766088197858,-828.55102397,0.00016682,2]
[399040615,1766088197884,-828.55102397,0.00016682,2]
[399040616,1766088197909,-828.55102397,0.00016682,2]
[399040617,1766088197940,-48585.61940105,0.00016683,2]
[399040623,1766088252720,233.79,0.00013699,2]
[399040625,1766088361836,-193.49275747,0.00016612,2]
[399040626,1766088366412,-166.66,0.00016612,2]
[399040627,1766088367635,-206.95970723,0.00016612,2]
[399040628,1766088369390,-96.09318239,0.00016612,2]
[399040629,1766088369411,-200.6751352,0.00016612,2]
[399040630,1766088369432,-179.04427503,0.00016621,2]
[399040631,1766088370957,-13.95572497,0.00016621,2]
[399040632,1766088370980,-230.88441276,0.0001663,2]
[399040633,1766088375564,-69.11558724,0.0001663,2]
[399040634,1766088375586,-115.5508085,0.00016647,2]
[399040635,1766088378079,-184.4491915,0.00016647,2]
[399040636,1766088378103,-275.1551444,0.00016681,2]
[399040637,1766088379324,-24.8448556,0.00016681,2]
[399040638,1766088379347,-230.44656256,0.00016682,2]
[399040639,1766088381398,-342.72675548,0.00016682,2]
[399040640,1766088384540,-527.78242833,0.00016682,2]
[399040641,1766088384562,-383.3499577,0.00016682,2]
[399040642,1766088384584,-521.43,0.00016682,2]
[399040643,1766088384607,-249.44761397,0.00016682,2]
[399040644,1766088387181,-50.55238603,0.00016682,2]
[399040645,1766088387204,-165.18077783,0.00016682,2]
[399040646,1766088389996,-300.0,0.00016682,2]
[399040647,1766088393712,-261.31862545,0.00016682,2]
[399040648,1766088395324,-178.02637058,0.00016682,2]
[399040649,1766088398006,-174.47450186,0.00016682,2]
[399040650,1766088401354,-120.99972428,0.00016682,2]
[399040651,1766088401381,-73.31137325,0.00016682,2]
[399040652,1766088403328,-244.71974984,0.00016682,2]
[399040653,1766088405323,-181.96887691,0.00016682,2]
[399040654,1766088405349,-211.53689195,0.00016682,2]
[399040655,1766088409864,-288.46310805,0.00016682,2]
[399040656,1766088409889,-48.87473075,0.00016682,2]
[399040657,1766088412532,-300.0,0.00016682,2]
[399040658,1766088413655,-151.12526925,0.00016682,2]
[399040659,1766088413682,-177.24978837,0.00016682,2]
[399040660,1766088415670,-167.17661609,0.00016682,2]
[399040661,1766088418441,-155.57359554,0.00016682,2]
[399040662,1766088418467,-52.98167757,0.00016682,2]
[399040663,1766088419927,-276.05123905,0.00016682,2]
[399040664,1766088421497,-170.96708338,0.00016682,2]
[399040665,1766088421520,-206.69519089,0.00016682,2]
[399040666,1766088423934,-293.30480911,0.00016682,2]
[399040667,1766088423959,-4.71563619,0.00016682,2]
[399040668,1766088425651,-225.01251947,0.00016682,2]
[399040669,1766088427320,-199.99999983,0.00016682,2]
[399040670,1766088429027,-70.27184451,0.00016682,2]
[399040671,1766088429057,-229.72815549,0.00016682,2]
[399040672,1766088431876,-200.00513668,0.00016682,2]
[399040673,1766088435810,-70.26670783,0.00016682,2]
[399040674,1766088435835,-229.73329217,0.00016682,2]
[399040675,1766088439759,-270.26670783,0.00016682,2]
[399040676,1766088439785,-31.18740264,0.00016682,2]
[399040677,1766088441276,-197.7872548,0.00016682,2]
[399040678,1766088443700,-271.02534256,0.00016682,2]
[399040679,1766088443727,-28.97465744,0.00016682,2]
[399040680,1766088445210,-152.41552863,0.00016612,2]
[399040681,1766088447267,-165.00784516,0.00016612,2]
[399040682,1766088448409,-151.67773019,0.00016612,2]
[399040683,1766088449856,-212.22072072,0.00016612,2]
[399040684,1766088451374,-275.90767745,0.00016612,2]
[399040685,1766088453484,-216.82349512,0.00016612,2]
[399040686,1766088456558,-500.0,0.00016612,2]
[399040687,1766088458564,-225.66926296,0.00016612,2]
[399040688,1766088460017,-203.41976555,0.00016612,2]
[399040689,1766088461606,-231.10660575,0.00016612,2]
[399040690,1766088463699,-226.7319614,0.00016612,2]
[399040691,1766088465133,-285.1038663,0.00016612,2]
[399040692,1766088468266,-265.64678461,0.00016612,2]
[399040693,1766088469847,-620.11943631,0.00016612,2]
[399040694,1766088471472,-300.0,0.00016612,2]
[399040695,1766088473013,-170.66406386,0.00016612,2]
[399040696,1766088475123,-199.48447556,0.00016512,2]
[399040697,1766088475153,-158.87416982,0.00016612,2]
[399040698,1766088479209,-227.68586486,0.00016612,2]
[399040699,1766088483376,-300.0,0.00016611,2]
[399040700,1766088483400,-613.510581,0.00016612,2]
[399040701,1766088485029,-245.55,0.00016612,2]
[399040702,1766088487202,-350.59965356,0.00016612,2]
[399040703,1766088490028,-300.0,0.00016612,2]
[399040704,1766088492633,-169.11321539,0.00016612,2]
[399040705,1766088506210,-169.86523489,0.00016612,2]
[399040706,1766088507289,-300.0,0.00016612,2]
[399040707,1766088509027,-168.32706416,0.00016612,2]
[399040708,1766088509049,-90.55945598,0.00016612,2]
[399040709,1766088511740,-288.32770075,0.00016612,2]
[399040710,1766088515714,-265.46229925,0.00016612,2]
[399040711,1766088517550,-318.49583387,0.00016612,2]
[399040712,1766088520558,-225.22908457,0.00016612,2]
[399040713,1766088522709,-240.38946008,0.00016612,2]
[399040714,1766088524931,-360.13120688,0.00016612,2]
[399040715,1766088528802,-361.30591974,0.00016612,2]
[399040716,1766088529918,-259.61053992,0.00016612,2]
[399040717,1766088531876,-223.18062652,0.00016612,2]
[399040718,1766088533343,-294.3508281,0.00016612,2]
[399040719,1766088536067,-244.68722289,0.00016612,2]
[399040720,1766088537156,-160.13120688,0.00016612,2]
[399040721,1766088540108,-174.36309255,0.00016612,2]
[399040722,1766088542980,-266.5374494,0.00016612,2]
[399040723,1766088545613,-163.86805022,0.00016583,2]
[399040724,1766088547682,-348.29697274,0.00016583,2]
[399040725,1766088549455,-255.31277711,0.00016583,2]
[399040726,1766088552801,-453.3380702,0.00016583,2]
[399040727,1766088554385,-156.42083023,0.00016583,2]
[399040728,1766088555846,-257.81217919,0.00016583,2]
[399040729,1766088559030,-178.1284631,0.00016583,2]
[399040730,1766088560543,-347.45545818,0.00016583,2]
[399040743,1766088631624,-189.05239858,0.00016512,2]
[399040745,1766088631634,-187.24,0.00016573,2]
[399040746,1766088631644,-187.24,0.00016573,2]
[399040747,1766088631653,-187.24,0.00016573,2]
[399040748,1766088631662,-187.24,0.00016573,2]
[399040749,1766088631671,-187.24,0.00016573,2]
[399040750,1766088631684,-300.0,0.00016582,2]
[399040751,1766088631694,-300.0,0.00016582,2]
[399040752,1766088631703,-16.19240404,0.00016582,2]
[399040753,1766088631719,-1183.80759596,0.00016582,2]
[399040754,1766088631728,-65635.25518365,0.00016583,2]
[399040755,1766088631792,-375.30094207,0.00016582,2]
[399040756,1766088631801,-339.55801018,0.00016582,2]
[399040757,1766088631847,-160.44198982,0.00016582,2]
[399040759,1766088631857,-353.45575533,0.00016582,2]
[399040761,1766088631866,-481.98934429,0.00016582,2]
[399040762,1766088631877,-18.01065571,0.00016582,2]
[399040763,1766088631886,-500.0,0.00016582,2]
[399040764,1766088631895,-480.98934429,0.00016582,2]
[399040765,1766088631906,-19.01065571,0.00016582,2]
[399040766,1766088631915,-979.98934429,0.00016583,2]
[399040773,1766088637676,-500.0,0.00016582,2]
[399040774,1766088637685,-283.10593438,0.00016582,2]
[399040775,1766088637695,-500.0,0.00016582,2]
[399040776,1766088637704,-500.0,0.00016582,2]
[399040777,1766088637713,-30837.76834209,0.00016583,2]
[399040778,1766088637725,-788386.354329,0.00016583,2]
[399040779,1766088637734,-1725.3122649,0.00016606,2]
[399040780,1766088637743,-3078.58421656,0.00016612,2]
[399040781,1766088637754,-580.30494116,0.00016612,2]
[399040782,1766088637763,-653.4,0.00016673,3]
[399040783,1766088637772,-151.0,0.00016683,2]
[399040784,1766088637781,-151.0,0.00016683,2]
[399040785,1766088637791,-200.0,0.00016683,2]
[399040786,1766088637800,-166.21,0.00016712,2]
[399040787,1766088637810,-3989.02448,0.00016717,2]
[399040788,1766088637819,-200.0,0.00016792,2]
[399040789,1766088637828,-200.0,0.0001685,2]
[399040790,1766088637837,-58.6711435,0.00016892,2]
[399040791,1766088637846,-500.0,0.00016892,2]
[399040792,1766088637855,-500.0,0.00016892,2]
[399040793,1766088637865,-500.0,0.00016892,2]
[399040794,1766088637874,-500.0,0.00016892,2]
[399040795,1766088637883,-500.0,0.00016892,2]
[399040796,1766088637892,-500.0,0.00016892,2]
[399040797,1766088637901,-500.0,0.00016892,2]
[399040798,1766088637910,-500.0,0.00016892,2]
[399040799,1766088637919,-987.39,0.00016892,2]
[399040800,1766088637928,-180.97846882,0.000169,2]
[399040801,1766088637938,-20038.76,0.000169,2]
[399040803,1766088637948,-299.99,0.000169,4]
[399040805,1766088637957,-551.17241592,0.000169,2]
[399040807,1766088637966,-863.0,0.00016989,2]
[399040809,1766088637976,-179.0,0.00016989,2]
[399040811,1766088637985,-999.99,0.0001699,2]
[399040813,1766088637994,-1705.78,0.0001699,2]
[399040815,1766088638003,-3482.39,0.0001699,2]
[399040817,1766088638012,-9999.99,0.0001699,2]
[399040819,1766088638021,-151.0,0.0001699,2]
[399040821,1766088638030,-151.0,0.0001699,2]
[399040823,1766088638039,-151.0,0.0001699,2]
[399040825,1766088638048,-151.0,0.0001699,2]
[399040827,1766088638059,-151.0,0.0001699,2]
[399040829,1766088638069,-151.0,0.0001699,2]
[399040831,1766088638079,-151.0,0.0001699,2]
[399040833,1766088638090,-151.0,0.0001699,2]
[399040835,1766088638099,-203.41509018,0.0001699,2]
[399040837,1766088638108,-500.0,0.0001699,2]
[399040839,1766088638116,-500.0,0.0001699,2]
[399040841,1766088638126,-500.0,0.0001699,2]
[399040843,1766088638136,-500.0,0.0001699,2]
[399040845,1766088638145,-500.0,0.0001699,2]
[399040847,1766088638154,-500.0,0.0001699,2]
[399040849,1766088638165,-500.0,0.0001699,2]
[399040851,1766088638174,-500.0,0.0001699,2]
[399040853,1766088638183,-500.0,0.0001699,2]
[399040855,1766088638193,-500.0,0.0001699,2]
[399040856,1766088638202,-500.0,0.0001699,2]
[399040857,1766088638211,-500.0,0.0001699,2]
[399040858,1766088638221,-200.0,0.0001699,2]
[399040859,1766088638230,-500.0,0.0001699,2]
[399040860,1766088638239,-500.0,0.0001699,2]
[399040861,1766088638248,-500.0,0.0001699,2]
[399040862,1766088638257,-500.0,0.0001699,2]
[399040863,1766088638267,-500.0,0.0001699,2]
[399040864,1766088638276,-500.0,0.0001699,2]
[399040865,1766088638285,-500.0,0.0001699,2]
[399040866,1766088638295,-500.0,0.0001699,2]
[399040867,1766088638306,-500.0,0.0001699,2]
[399040868,1766088638315,-500.0,0.0001699,2]
[399040869,1766088638324,-500.0,0.0001699,2]
[399040870,1766088638334,-200.0,0.0001699,2]
[399040871,1766088638344,-151.0,0.0001699,2]
[399040872,1766088638353,-151.0,0.0001699,2]
[399040873,1766088638363,-151.0,0.0001699,2]
[399040874,1766088638372,-200.0,0.0001699,2]
[399040875,1766088638382,-151.0,0.0001699,2]
[399040876,1766088638392,-151.0,0.0001699,2]
[399040877,1766088638401,-151.0,0.0001699,2]
[399040878,1766088638410,-151.0,0.0001699,2]
[399040879,1766088638420,-151.0,0.0001699,2]
[399040880,1766088638429,-151.0,0.0001699,2]
[399040881,1766088638438,-151.0,0.0001699,2]
[399040882,1766088638447,-151.0,0.0001699,2]
[399040883,1766088638456,-500.0,0.0001699,2]
[399040884,1766088638465,-9999.99,0.0001699,2]
[399040885,1766088638474,-3015.78,0.0001699,2]
[399040886,1766088638483,-500.0,0.00016999,2]
[399040887,1766088638492,-500.0,0.00016999,2]
[399040888,1766088638504,-500.0,0.00016999,2]
[399040889,1766088638523,-500.0,0.00016999,2]
[399040890,1766088638536,-500.0,0.00016999,2]
[399040891,1766088638547,-500.0,0.00016999,2]
[399040892,1766088638559,-211.9059115,0.00016999,2]
[399040893,1766088638569,-500.0,0.00016999,2]
[399040894,1766088638580,-500.0,0.00016999,2]
[399040895,1766088638591,-500.0,0.00016999,2]
[399040896,1766088638601,-500.0,0.00016999,2]
[399040897,1766088638613,-500.0,0.00016999,2]
[399040898,1766088638623,-155.58129497,0.00016999,2]
[399040899,1766088639056,-500.0,0.00016999,2]
[399040900,1766088639076,-500.0,0.00016999,2]
[399040901,1766088639090,-500.0,0.00016999,2]
[399040902,1766088639101,-239.96829058,0.00016999,2]
[399040903,1766088639111,-500.0,0.00016999,2]
[399040904,1766088639121,-500.0,0.00016999,2]
[399040905,1766088639132,-500.0,0.00016999,2]
[399040906,1766088639142,-500.0,0.00016999,2]
[399040907,1766088639151,-500.0,0.00016999,2]
[399040908,1766088639161,-500.0,0.00016999,2]
[399040909,1766088639172,-500.0,0.00016999,2]
[399040910,1766088639181,-500.0,0.00016999,2]
[399040911,1766088639191,-300.0,0.00016999,2]
[399040912,1766088639200,-300.0,0.00016999,2]
[399040913,1766088639210,-666.0,0.00016999,2]
[399040914,1766088639220,-666.0,0.00016999,2]
[399040915,1766088639230,-666.0,0.00016999,2]
[399040916,1766088639240,-300.0,0.00016999,2]
[399040917,1766088639250,-474.66099941,0.00016999,2]
[399040918,1766088639261,-379.35946959,0.00016999,2]
[399040919,1766088639271,-500.0,0.00016999,2]
[399040920,1766088639280,-500.0,0.00016999,2]
[399040921,1766088639290,-500.0,0.00016999,2]
[399040922,1766088639300,-619.81134291,0.00016999,2]
[399040923,1766088639314,-1033146.42766866,0.00017,2]
[399040924,1766088639332,-1693.0,0.00017,2]
[399040927,1766088639813,-151.0,0.00016999,2]
[399040928,1766088639825,-118.31006989,0.00016999,2]
[399040929,1766088639840,-161.16659237,0.00016999,2]
[399040930,1766088639850,-460.19205831,0.00017,2]
[399040931,1766088639864,-1273.31641668,0.00017,2]
[399040936,1766088642590,-1.7e-07,0.00017,2]
[399040937,1766088642606,-4236.3,0.00017,2]
[399040946,1766088642794,-4236.05,0.00017,2]
[399040947,1766088642901,-21192.75,0.00017,2]
[399040948,1766088642912,-7310.218129,0.00017,2]
[399040965,1766088647480,-13831.98,0.00017,2]
[399040966,1766088647491,-357.44392793,0.00017,2]
[399040967,1766088647501,-4239.01222469,0.00017,2]
[399040968,1766088647547,-791.07285415,0.00017,2]
[399040969,1766088647560,-320.45196013,0.00017,2]
[399040970,1766088647572,-1055.41066421,0.00017,2]
[399040971,1766088647583,-1206.9459621,0.00017,2]
[399040978,1766088847314,166.66,0.00015272,2]
[399040979,1766088851865,166.66,0.00015593,2]
[399040980,1766088852144,166.66,0.00015915,2]
[399040981,1766088862582,1935.71,8.006e-05,2]
[399040982,1766088862802,1935.71,8.427e-05,2]
[399040983,1766088863080,1935.71,8.849e-05,2]
[399040984,1766088865258,1935.71,9.27e-05,2]
[399040985,1766088866487,1935.71,9.691e-05,2]
[399040986,1766088866544,1935.71,0.00010113,2]
[399040987,1766088866593,1935.71,0.00010534,2]
[399040988,1766088866631,1935.71,0.00010956,2]
[399040989,1766088866672,1935.71,0.00011377,2]
[399040990,1766088866725,1935.71,0.00011798,2]
[399040991,1766088867288,1935.71,0.0001222,2]
[399040992,1766088867367,1935.71,0.00012641,2]
[399040993,1766088867415,1935.71,0.00013062,2]
[399040994,1766088867469,1935.71,0.00013484,2]
[399040995,1766088867556,-166.66,0.00016236,2]
[399040996,1766088916945,831.05,0.00016037,2]
[399040997,1766088972395,3222.97,0.0001611,2]
[399040998,1766088997347,3240.0,0.0001611,2]
[399040999,1766089000999,16103.14,0.00016008,2]
[399041000,1766089068323,-809.56231565,0.00016239,2]
[399041001,1766089069865,-368.91884562,0.00016239,2]
[399041002,1766089072033,-219.63638542,0.00016239,2]
[399041003,1766089090200,-4289.56245331,0.00016239,2]
[399041004,1766089090231,-300.0,0.00016299,2]
[399041005,1766089090264,-220.50273097,0.0001636,2]
[399041006,1766089092108,-379.87963144,0.00016383,2]
[399041007,1766089093147,-120.12036856,0.00016383,2]
[399041008,1766089093180,-500.0,0.00016383,2]
[399041009,1766089093212,-500.0,0.00016383,2]
[399041010,1766089093244,-220.50273096,0.00016409,2]
[399041011,1766089093274,-844.69384974,0.00016458,2]
[399041012,1766089093356,-5629.37610148,0.00016458,2]
[399041013,1766089103684,-220.50273096,0.00016458,2]
[399041014,1766089103714,-3343.56806315,0.0001646,2]
[399041015,1766089103840,-2871.86841178,0.0001646,2]
[399041016,1766089115934,-653.4,0.00016473,3]
[399041017,1766089115966,-200.0,0.00016473,2]
[399041018,1766089115995,-200.0,0.00016473,2]
[399041019,1766089116024,-500.0,0.00016473,2]
[399041020,1766089116054,-500.0,0.00016473,2]
[399041021,1766089116083,-500.0,0.00016473,2]
[399041022,1766089116112,-500.0,0.00016473,2]
[399041023,1766089116140,-500.0,0.00016473,2]
[399041024,1766089116171,-500.0,0.00016473,2]
[399041025,1766089116204,-500.0,0.00016473,2]
[399041026,1766089116240,-393.21,0.00016473,2]
[399041027,1766089116477,-106.79,0.00016473,2]
[399041028,1766089146065,1274.39,0.0001611,2]
[399041032,1766089387863,150.0,0.00015818,2]
[399041034,1766089472968,-237.49250503,0.00016365,2]
[399041035,1766089472991,-250.0,0.00016388,2]
[399041036,1766089473013,-67.57448084,0.00016412,2]
[399041037,1766089476101,23775.15,0.00015802,2]
[399041038,1766089478172,-169.91802418,0.00016412,2]
[399041039,1766089478198,-798.45867596,0.00016438,2]
[399041040,1766089486785,-137.91132404,0.00016438,2]
[399041041,1766089486807,-87.02808732,0.00016446,2]
[399041042,1766089490029,-79.63191268,0.00016446,2]
[399041043,1766089490053,-143.16406188,0.00016457,2]
[399041044,1766089492734,-254.0336321,0.00016457,2]
[399041045,1766089494948,-226.94530736,0.00016457,2]
[399041046,1766089496172,-325.79415652,0.00016457,2]
[399041047,1766089498437,-169.26868756,0.00016457,2]
[399041048,1766089502237,-80.79415458,0.00016457,2]
[399041049,1766089502259,-181.0,0.00016457,2]
[399041050,1766089502283,-43.75119291,0.00016457,2]
[399041051,1766089516738,-256.24880709,0.00016457,2]
[399041052,1766089516763,-300.0,0.00016457,2]
[399041053,1766089516786,-918.64119805,0.00016457,2]
[399041054,1766089518735,3189.04001216,9e-05,2]
[399041055,1766089519579,-275.81675339,0.00016457,2]
[399041056,1766089521657,-5.54204856,0.00016457,2]
[399041057,1766089521681,-171.16217679,0.00016458,2]
[399041058,1766089522082,-128.83782321,0.00016458,2]
[399041059,1766089522129,-195.0,0.00016458,2]
[399041060,1766089522161,-300.0,0.00016458,2]
[399041061,1766089522192,-3158.44152608,0.00016458,2]
[399041062,1766089522267,-2435.45130142,0.00016458,2]
[399041063,1766089523156,-237.49250502,0.00016458,2]
[399041064,1766089523182,-254.32293703,0.00016458,2]
[399041065,1766089523853,-325.98200413,0.00016458,2]
[399041066,1766089523890,-3521.38303566,0.00016458,2]
[399041067,1766089523951,-2305.27992042,0.00016458,2]
[399041068,1766089524609,1024.23956357,0.000108,2]
[399041069,1766089524763,-300.0,0.00016469,2]
[399041070,1766089524794,-987.39,0.00016473,2]
[399041071,1766089524827,-500.0,0.00016473,2]
[399041072,1766089525532,-500.0,0.00016473,2]
[399041073,1766089525564,-500.0,0.00016473,2]
[399041074,1766089525597,-500.0,0.00016473,2]
[399041075,1766089525632,-500.0,0.00016473,2]
[399041076,1766089525663,-500.0,0.00016473,2]
[399041077,1766089525694,-500.0,0.00016473,2]
[399041078,1766089525793,-181.99247478,0.00016473,2]
[399041079,1766089525929,-318.00752522,0.00016473,2]
[399041080,1766089525939,-107.22247478,0.00016473,2]
[399041081,1766089527880,-392.77752522,0.00016473,2]
[399041082,1766089527913,-500.0,0.00016473,2]
[399041083,1766089527946,-500.0,0.00016473,2]
[399041084,1766089527980,-500.0,0.00016473,2]
[399041085,1766089528011,-500.0,0.00016473,2]
[399041086,1766089528044,-500.0,0.00016473,2]
[399041087,1766089528079,-500.0,0.00016473,2]
[399041088,1766089528112,-500.0,0.00016473,2]
[399041089,1766089528144,-500.0,0.00016473,2]
[399041090,1766089528183,-500.0,0.00016473,2]
[399041091,1766089528297,-500.0,0.00016473,2]
[399041092,1766089528333,-500.0,0.00016473,2]
[399041093,1766089528366,-500.0,0.00016473,2]
[399041094,1766089528398,-200.0,0.00016473,2]
[399041095,1766089528430,-200.0,0.00016473,2]
[399041096,1766089528461,-200.0,0.00016473,2]
[399041097,1766089528495,-151.0,0.00016473,2]
[399041098,1766089528528,-151.0,0.00016473,2]
[399041099,1766089528564,-151.0,0.00016473,2]
[399041100,1766089528606,-151.0,0.00016473,2]
[399041101,1766089528641,-151.0,0.00016473,2]
[399041102,1766089528675,-151.0,0.00016473,2]